{"text_format":"3","workbook":"xlsx","n_sheets":2,"sheets":["Временная шкала","Информация"],"not_rendered":{"charts":1,"images":2,"defined_names":2},"read":"whole","date_system":"1900"}

{"sheet":"Временная шкала","index":0,"n_rows":49,"n_cols":10,"rows_kept":49}
[]
[]
[]
[{"$nulls":9},"ШАБЛОНЫ ВРЕМЕННОЙ ШКАЛЫ ОТ Vertex42.COM"]
[{"$nulls":9},"https://www.vertex42.com/ExcelTemplates/timeline.html"]
[]
[]
[{"$nulls":9},"Советы по использованию этого шаблона"]
[{"$nulls":9},"• Добавляйте и удаляйте строки целиком при изменении таблиц данных"]
[{"$nulls":9},"• Не оставляйте столбец меток пустым"]
[{"$nulls":9},"• Отформатируйте горизонтальную ось, чтобы установить минимальную и максимальную границы"]
[{"$nulls":9},"• Указывайте значение вертикальной координаты -100 до 50"]
[{"$nulls":9},"• Форматируйте отдельные подписи данных или маркеры для выделения определенных событий"]
[{"$nulls":9},"• Ознакомьтесь с примечаниями ячеек в строке заголовков таблицы для получения дополнительных сведений"]
[]
[{"$nulls":9},"Другие примечания"]
[{"$nulls":9},"•  Выноски вех — это планки погрешностей по оси Y"]
[{"$nulls":9},"•  Выноски задач — это планки погрешностей по оси Y"]
[{"$nulls":9},"•  Длительности задач — это планки погрешностей по оси X"]
{"$rows_empty":8}
[null,"Задачи"]
[null,"Начало","Конец","Длительность","Метка","Верт. координата","Верт. Линия"]
[]
[null,"2018-03-28",{"$f":"B31+D31-1","v":"2018-04-11"},15,{"$f":"\"Задача 1 \"&CHAR(10)&TEXT(B31,\"Д МММ\")&\" - \"&TEXT(C31,\"Д МММ\")","v":"Задача 1 \n28 мар - 11 апр"},-25,{"$f":"F31","v":-25}]
[null,{"$f":"C31+1","v":"2018-04-12"},"2018-05-01",20,{"$f":"\"Задача 2 \"&CHAR(10)&TEXT(B32,\"Д МММ\")&\" - \"&TEXT(C32,\"Д МММ\")","v":"Задача 2 \n12 апр - 1 май"},{"$f":"F31-15","v":-40},{"$f":"F32-F31","v":-15}]
[null,{"$f":"C32+1","v":"2018-05-02"},"2018-05-25",24,{"$f":"\"Задача 3 \"&CHAR(10)&TEXT(B33,\"Д МММ\")&\" - \"&TEXT(C33,\"Д МММ\")","v":"Задача 3 \n2 май - 25 май"},{"$f":"F32-15","v":-55},{"$f":"F33-F32","v":-15}]
[null,"2018-04-28","2018-07-12",76,"Метка задачи 4",-80,{"$f":"F34","v":-80}]
[null,"2018-06-15","2018-07-04",20,"Метка задачи 5",-30,{"$f":"F35","v":-30}]
[null,{"$f":"C35+1","v":"2018-07-05"},"2018-08-03",30,"Метка задачи 6",{"$f":"F35-15","v":-45},{"$f":"F36-F35","v":-15}]
[null,"2018-08-10","2018-09-10",32,"Метка задачи 7",-20,{"$f":"F37","v":-20}]
[null,{"$f":"C37+1","v":"2018-09-11"},"2018-09-15",5,"Метка задачи 8",-60,{"$f":"F38-F37","v":-40}]
[null,{"$f":"C38+1","v":"2018-09-16"},"2018-10-06",21,"Метка задачи 9",{"$f":"F38-15","v":-75},{"$f":"F39-F38","v":-15}]
[{"$nulls":4},"Вставьте новые строки над этой"]
[]
[null,"Вехи"]
[null,"Дата",null,null,"Метка","Координата"]
[]
[null,"2018-04-02",null,null,{"$f":"\"Начало, \"&TEXT(B45,\"Д МММ\")","v":"Начало, 2 апр"},30]
[null,{"$f":"C33","v":"2018-05-25"},null,null,"Веха №1",25]
[null,{"$f":"C36","v":"2018-08-03"},null,null,"Веха №2",20]
[null,{"$f":"C39","v":"2018-10-06"},null,null,{"$f":"\"Доставка, \"&TEXT(B48,\"Д МММ\")","v":"Доставка, 6 окт"},15]
[{"$nulls":4},"Вставьте новые строки над этой"]

{"sheet":"Информация","index":1,"n_rows":19,"n_cols":2,"rows_kept":19}
[]
[null,"ВРЕМЕННАЯ ШКАЛА ПРОЕКТА ОТ Vertex42.com"]
[null,"https://www.vertex42.com/ExcelTemplates/project-timeline.html"]
[]
[]
[null,"Об этом шаблоне"]
[null,"В этом шаблоне используется точечная диаграмма с метками данных и планками погрешностей для создания временной шкалы проекта, отображающей вехи и задачи с длительностями. В отличие от диаграммы Ганта, отображающей каждую задачу в отдельной строке, вы можете управлять вертикальным расположением задач на временной шкале. Можно указать длину вертикальной выноски, чтобы упростить отображение зависимостей задач."]
[]
[null,"Этот тип временной шкалы проекта в основном подходит для обзора проекта, а не для демонстрации подробной структуры разбивки работ."]
[]
[null,"Дополнительные шаблоны"]
[null,"Посетите сайт Vertex42.com, чтобы скачать другие шаблоны временной шкалы и управления проектами."]
[null,"Дополнительные шаблоны временной шкалы"]
[null,"Дополнительные шаблоны для управления проектами"]
[]
[null,"О компании Vertex42"]
[null,"Vertex42.com предлагает профессионально оформленные шаблоны рабочих книг для дома, бизнеса и учебы. Большинство из них можно скачать бесплатно. В коллекцию шаблонов входят разнообразные календари, планировщики и расписания, а также средства учета личных финансов для составления бюджета, сокращения задолженности и погашения кредита."]
[]
[null,"Для предприятий предлагаются шаблоны счетов, табелей учета рабочего времени, журналов учета запасов, финансовых отчетов и планов проектов. Преподавателей и учащихся порадуют такие ресурсы, как расписания занятий, дневники и журналы учета посещаемости. Для организации домашнего быта используйте планировщики питания, контрольные списки и журналы тренировок. Каждый шаблон внимательно изучается, уточняется и со временем совершенствуется благодаря отзывам тысяч пользователей."]